[Event "44th Chess Olympiad Women 2022"]
[Site "Chennai"]
[Date "2022.07.29"]
[Round "1.26"]
[White "Vidic, Teja"]
[Black "Jonet, Davena"]
[Result "1-0"]
[ECO "B01"]
[WhiteElo "2099"]
[BlackElo "1458"]
[Annotator "TA"]
[PlyCount "69"]
[EventDate "2022.07.29"]
[EventType "team-tourn"]
[EventCountry "IND"]
[SourceTitle "playchess.com"]
[Source "ChessBase"]
[SourceQuality "1"]
[WhiteTeam "Slovenia"]
[BlackTeam "Haiti"]
[WhiteTeamCountry "SLO"]
[BlackTeamCountry "HAI"]
[TimeControl "40/5400+30:1800+30"]

{[%evp 9,68,42,71,42,37,45,233,237,235,227,239,229,320,297,669,661,653,641,755,675,790,791,846,752,840,840,883,862,896,885,1054,1035,1259,1215,1673,1659,1605,1606,2156,2092,3456,3058,29987,29988,29988,29989,29990,29991,29991,29992,29992,29993,29993,29993,29994,29995,29995,29995,29997,29997,29999]} 1. e4 {[%emt 0:00:03]} d5 {[%emt 0:00:19]} 2. exd5 {[%emt 0:00:08]} Qxd5 {[%emt 0:00:16]} 3. Nc3 {[%emt 0:00:06]} Qd8 {[%emt 0:00:25]} 4. d4 {[%emt 0:00:41]} Bf5 {[%emt 0:00:23]} 5. Nf3 {[%emt 0:04:51]} Nf6 {[%emt 0:01:04]} 6. Bd3 {[%emt 0:00:35] B01: Scandinavian Defence.} Bxd3 {[%emt 0:02:16]} 7. Qxd3 {[%emt 0:00:02]} Nc6 $2 {[%emt 0:01:00] [#] This costs Black the game.} ({Better is} 7... Nbd7 $14) 8. d5 $146 {[%emt 0:01:12] White is clearly better.} ({Predecessor:} 8. O-O e6 9. Bf4 Bd6 10. Bxd6 Qxd6 11. a3 O-O 12. Ne4 Nxe4 13. Qxe4 Rad8 14. Rad1 {½-½ (35) Robers,F-Wagmann,S freechess.de 2016}) 8... Nb8 {[%emt 0:03:20]} 9. Qb5+ {[%emt 0:04:08]} Nbd7 {[%emt 0:03:05]} 10. Qxb7 {[%emt 0:00:30] [#] Nb5 is the strong threat.} g6 {[%emt 0:02:32]} 11. Nb5 {[%emt 0:04:00][%csl LRa7,LRc7]} Qc8 {[%emt 0:24:46]} (11... Rc8 12. Bf4 (12. Qxa7 Bg7 $16) 12... Bg7) 12. Nxc7+ {[%emt 0:05:07]} Kd8 {[%emt 0:02:07]} 13. Qxa8 {[%emt 0:00:00]} Kxc7 {[%emt 0:05:25]} 14. Qxa7+ {[%emt 0:00:00]} Kd8 {[%emt 0:16:00]} 15. O-O {[%emt 0:01:20]} h5 {[%emt 0:05:44]} 16. Be3 {[%emt 0:05:23]} Ke8 {[%emt 0:04:39]} 17. Rfd1 {[%emt 0:00:00]} Bg7 {[%emt 0:05:32]} 18. c4 {[%emt 0:01:21]} Ne4 {[%emt 0:03:08]} 19. Bd4 {[%emt 0:01:14]} f6 {[%emt 0:06:05]} 20. c5 {[%emt 0:03:10]} Kf7 {[%emt 0:03:14]} 21. c6 {[%emt 0:00:39]} Ne5 {[%emt 0:01:28]} 22. Bxe5 {[%emt 0:00:37]} fxe5 {[%emt 0:01:12]} 23. d6 {[%emt 0:00:21]} Bf6 {[%emt 0:02:41] [#]} 24. Nxe5+ $1 {[%emt 0:02:36]} Ke6 {[%emt 0:01:53]} (24... Kg7 25. d7) 25. d7 {[%emt 0:00:25]} Qb8 {[%emt 0:02:03]} 26. Qxb8 {[%emt 0:00:13] White mates.} Rxb8 {[%emt 0:00:29]} 27. c7 {[%emt 0:00:17]} Rg8 {[%emt 0:01:30]} 28. c8=Q {[%emt 0:05:53]} Rxc8 {[%emt 0:00:52]} 29. dxc8=Q+ {[%emt 0:00:08]} Kxe5 {[%emt 0:00:55]} 30. g3 {[%emt 0:00:19][%csl Gg3][%cal Rf2f4]} Bg5 {[%emt 0:00:27]} 31. f4+ {[%emt 0:00:06]} Bxf4 {[%emt 0:00:36]} 32. gxf4+ {[%emt 0:00:54]} Kxf4 {[%emt 0:00:10]} 33. Rd4 {[%emt 0:00:26]} Kf3 {[%emt 0:00:35]} 34. Qh3+ {[%emt 0:00:24]} Ke2 {[%emt 0:00:13]} 35. Qd3# {[%emt 0:00:42] Weighted Error Value: White=0.15 (very precise) /Black=1.11} 1-0

[Event "44th Chess Olympiad Women 2022"]
[Site "Chennai"]
[Date "2022.07.29"]
[Round "1.26"]
[White "Paul, Theophane"]
[Black "Janzelj, Lara"]
[Result "0-1"]
[ECO "A43"]
[WhiteElo "1493"]
[BlackElo "2215"]
[Annotator "TA"]
[PlyCount "72"]
[EventDate "2022.07.29"]
[EventType "team-tourn"]
[EventCountry "IND"]
[SourceTitle "playchess.com"]
[Source "ChessBase"]
[SourceQuality "1"]
[WhiteTeam "Haiti"]
[BlackTeam "Slovenia"]
[WhiteTeamCountry "HAI"]
[BlackTeamCountry "SLO"]
[TimeControl "40/5400+30:1800+30"]

{[%evp 9,72,-6,0,-25,-16,-49,-11,-39,-16,-41,1,-37,-18,-41,-7,-9,0,0,5,14,13,13,29,-53,-45,-54,-56,-48,0,-15,-9,-476,-489,-484,-458,-468,-459,-553,-545,-530,-539,-553,-504,-497,-485,-664,-664,-1059,-643,-1334,-1335,-1330,-1329,-1303,-1294,-1279,-1264,-1883,-1854,-29985,-29986,-29986,-29984,-29987,-29988]} 1. d4 {[%emt 0:00:05]} c5 {[%emt 0:00:11]} 2. Nf3 {[%emt 0:01:29]} cxd4 {[%emt 0:00:59]} 3. Nxd4 {[%emt 0:00:22]} Nc6 {[%emt 0:01:53]} 4. e3 {[%emt 0:01:05]} g6 {[%emt 0:00:20]} 5. Nc3 {[%emt 0:01:54]} Bg7 {[%emt 0:00:12]} 6. Bc4 {[%emt 0:01:52] A43: Schmid Benoni.} Nf6 {[%emt 0:00:54]} 7. O-O {[%emt 0:01:03]} O-O {[%emt 0:00:31]} 8. Nf3 {[%emt 0:04:26] [#] The position is equal.} b6 $146 {[%emt 0:06:28]} ({Predecessor:} 8... d6 9. Rb1 a6 10. Ng5 Ne5 11. Bb3 h6 12. Nge4 Nxe4 13. Nxe4 Bf5 14. Bd5 Nc6 {0-1 (58) D'Emilia,J (929)-Lenz,J (1038) LSS email 2017}) 9. Qe2 {[%emt 0:04:30]} a6 {[%emt 0:03:58]} 10. a4 {[%emt 0:02:50]} Bb7 {[%emt 0:01:18]} 11. e4 {[%emt 0:02:45]} d6 {[%emt 0:01:47]} 12. Bf4 {[%emt 0:03:17]} Nd7 {[%emt 0:09:10]} 13. Rfd1 {[%emt 0:10:59]} Nce5 {[%emt 0:01:29]} 14. Nxe5 {[%emt 0:07:07]} Nxe5 {[%emt 0:00:16]} 15. Bb3 {[%emt 0:00:58]} Rc8 {[%emt 0:03:38]} 16. Qe3 {[%emt 0:06:27]} (16. Bg5 $11) 16... Nc4 $15 {[%emt 0:04:34]} 17. Bxc4 {[%emt 0:02:31]} Rxc4 {[%emt 0:04:06]} 18. e5 {[%emt 0:03:32][%cal Re5d6]} d5 {[%emt 0:00:53]} (18... Re8 $15) 19. b3 {[%emt 0:09:39]} Rc5 {[%emt 0:01:46]} 20. Rd3 $2 {[%emt 0:05:17][%mdl 8192] [#] This costs White the game.} (20. Rac1 $11 {and White has nothing to worry.}) 20... Rxc3 $1 $19 {[%emt 0:05:38][%mdl 512]} 21. Rxc3 {[%emt 0:03:32] Threatens to win with Rd1.} d4 {[%emt 0:00:06]} 22. Qd3 {[%emt 0:02:29] Strongly threatening Rc4.} Qd5 {[%emt 0:01:33][%csl Gb7][%cal Rd5g2]} 23. Qf3 {[%emt 0:03:00] Hoping for Qxd5.} dxc3 {[%emt 0:00:11]} 24. Qxd5 {[%emt 0:00:32]} Bxd5 {[%emt 0:00:05]} 25. Rd1 {[%emt 0:00:49]} e6 {[%emt 0:00:18]} 26. f3 {[%emt 0:01:29]} b5 {[%emt 0:00:52]} 27. a5 {[%emt 0:01:37]} Rc8 {[%emt 0:01:06]} 28. Bg3 {[%emt 0:02:12]} Bf8 {[%emt 0:00:41]} 29. Bf2 {[%emt 0:01:37] [#]} Bxb3 $1 {[%emt 0:00:22]} 30. cxb3 {[%emt 0:02:48][%mdl 4096] Endgame KRB-KRB} c2 {[%emt 0:00:05]} 31. Rc1 {[%emt 0:00:27]} Bh6 {[%emt 0:00:09]} 32. Rxc2 {[%emt 0:04:11]} Rxc2 {[%emt 0:00:06]} 33. Be1 {[%emt 0:02:29]} Bd2 {[%emt 0:00:43]} 34. Bxd2 {[%emt 0:00:32]} Rxd2 {[%emt 0:00:04] Black mates.} 35. Kf1 {[%emt 0:00:23]} Rb2 {[%emt 0:00:05]} 36. b4 {[%emt 0:00:34]} Rxb4 {[%emt 0:00:06] Weighted Error Value: White=1.03/Black=0.23 (precise)} 0-1

[Event "44th Chess Olympiad Women 2022"]
[Site "Chennai"]
[Date "2022.07.29"]
[Round "1.26"]
[White "Cadeau, Merisena"]
[Black "Rozman, Monika"]
[Result "0-1"]
[ECO "C50"]
[WhiteElo "1439"]
[BlackElo "2104"]
[Annotator "TA"]
[PlyCount "86"]
[EventDate "2022.07.29"]
[EventType "team-tourn"]
[EventCountry "IND"]
[SourceTitle "playchess.com"]
[Source "ChessBase"]
[SourceQuality "1"]
[WhiteTeam "Haiti"]
[BlackTeam "Slovenia"]
[WhiteTeamCountry "HAI"]
[BlackTeamCountry "SLO"]
[TimeControl "40/5400+30:1800+30"]

{[%evp 14,85,17,0,0,2,8,6,9,0,0,0,14,15,8,-25,11,15,11,17,26,-18,0,0,0,-12,0,-11,-8,-25,-26,-39,-33,-40,-35,-44,-39,-100,-96,-99,-102,-103,-103,-112,-82,-141,-141,-184,-179,-158,-170,-181,-170,-204,-151,-164,-170,-381,-265,-439,-435,-416,-415,-398,-217,-5102,-5027,-29986,-29987,-29997,-29998,-29998,-29999,-29999]} 1. e4 {[%emt 0:00:02]} e5 {[%emt 0:00:05]} 2. Nf3 {[%emt 0:00:07]} Nc6 {[%emt 0:00:04]} 3. Bc4 {[%emt 0:00:08]} Bc5 {[%emt 0:00:06]} 4. Nc3 {[%emt 0:00:10]} Nf6 {[%emt 0:00:35]} 5. d3 {[%emt 0:00:27]} O-O {[%emt 0:03:59]} 6. Bg5 {[%emt 0:00:12]} Be7 {[%emt 0:00:50]} 7. O-O {[%emt 0:00:27]} d6 {[%emt 0:00:17]} 8. h3 {[%emt 0:00:28]} Na5 {[%emt 0:04:17] C50: Hungarian Defence and Giuoco Pianissimo.} 9. Bb3 {[%emt 0:00:25]} Nxb3 {[%emt 0:07:43]} 10. axb3 {[%emt 0:02:25]} c6 {[%emt 0:02:03] The position is equal.} 11. Qd2 {[%emt 0:04:16]} h6 {[%emt 0:03:44]} 12. Bh4 {[%emt 0:00:33] [#]} Nh5 $146 {[%emt 0:04:58]} ({Predecessor:} 12... Be6 13. Bxf6 Bxf6 14. d4 exd4 15. Nxd4 Bd7 16. Nf5 Bxf5 17. exf5 d5 {0-1 (49) Perez Bohigas,L (1965)-Fernandez Rivero,K (1928) San Nicolas de Bari 2012}) 13. Bxe7 {[%emt 0:00:52]} Qxe7 {[%emt 0:00:03]} 14. Rfe1 {[%emt 0:04:42]} Qf6 {[%emt 0:01:37][%cal Oc8h3]} (14... f5 $5 {[%cal Rf5e4]}) 15. Qe3 {[%emt 0:06:28]} a6 {[%emt 0:08:05]} 16. d4 {[%emt 0:02:37]} Nf4 {[%emt 0:06:22][%cal Oc8h3] aiming for ...Bxh3!} 17. Kh2 {[%emt 0:12:22]} Be6 {[%emt 0:01:47]} 18. dxe5 {[%emt 0:01:52]} dxe5 $40 {[%emt 0:00:07][%mdl 128] Black attacks.} 19. Ra5 {[%emt 0:00:24]} Ng6 {[%emt 0:02:13]} (19... Qg6 {is interesting.} 20. g3 Nxh3 21. Nxe5 Qh5) 20. Ne2 {[%emt 0:01:24]} Rad8 {[%emt 0:02:30]} 21. Ng3 {[%emt 0:02:26]} Bc8 {[%emt 0:02:26]} 22. Qc5 {[%emt 0:04:59]} Rfe8 {[%emt 0:01:04]} 23. Nh5 {[%emt 0:04:40]} Qe7 {[%emt 0:02:17]} 24. Qc3 {[%emt 0:08:07]} Rd6 {[%emt 0:08:41]} 25. g3 {[%emt 0:05:24]} (25. Ng3 $15) 25... f6 $17 {[%emt 0:02:55]} 26. g4 {[%emt 0:01:35]} Red8 {[%emt 0:00:51]} 27. Raa1 {[%emt 0:01:43]} Qc7 {[%emt 0:02:50]} 28. Ng3 {[%emt 0:02:19]} Qb6 {[%emt 0:04:50]} 29. Re2 {[%emt 0:00:34]} (29. Qe3 $142 c5 30. Rg1) 29... Nf4 {[%emt 0:00:42][%cal Bg6f4,Bf4h5,Bh5f4][%mdl 32]} 30. Qe3 {[%emt 0:01:33]} Qxe3 {[%emt 0:08:39]} 31. Rxe3 {[%emt 0:00:14] [#]} g6 $1 {[%emt 0:01:08][%cal Bg7g6,Bg6g5][%mdl 32] Black is more active.} 32. Ne2 {[%emt 0:00:58] [#]} h5 $1 {[%emt 0:02:15]} 33. gxh5 {[%emt 0:08:47]} Nxh5 {[%emt 0:00:04]} 34. Rg1 {[%emt 0:00:47]} Kf7 {[%emt 0:00:16]} 35. Nh4 $2 {[%emt 0:02:40]} (35. h4 {was worth a try.}) 35... g5 {[%emt 0:00:12]} 36. Nf5 {[%emt 0:02:18]} (36. Nf3 {was the only defense.}) 36... Bxf5 {[%emt 0:01:01]} 37. exf5 {[%emt 0:00:08]} Rd2 {[%emt 0:00:21]} 38. Rc1 {[%emt 0:06:03]} Nf4 {[%emt 0:01:51]} (38... Ng7 $142 39. Re4 Nxf5) 39. Ng1 $2 {[%emt 0:06:54]} (39. Nxf4 exf4 40. Rf3) 39... Rxf2+ $19 {[%emt 0:00:50]} 40. Kg3 {[%emt 0:00:17]} Rdd2 {[%emt 0:01:22] Black mates.} 41. c3 {[%emt 0:33:39]} Nh5+ {[%emt 0:30:12]} 42. Kg4 {[%emt 0:00:35]} Rf4+ {[%emt 0:00:02]} 43. Kxh5 {[%emt 0:02:35]} Rh4# {[%emt 0:00:03] Weighted Error Value: White=0.59/Black=0.13 (very precise)} 0-1

[Event "44th Chess Olympiad Women 2022"]
[Site "Chennai"]
[Date "2022.07.29"]
[Round "1.27"]
[White "Avramidou, Anastasia"]
[Black "Farrugia, Jamie"]
[Result "1-0"]
[ECO "A11"]
[WhiteElo "2274"]
[BlackElo "1547"]
[Annotator "TA"]
[PlyCount "65"]
[EventDate "2022.07.29"]
[EventType "team-tourn"]
[EventCountry "IND"]
[SourceTitle "playchess.com"]
[Source "ChessBase"]
[SourceQuality "1"]
[WhiteTeam "Greece"]
[BlackTeam "Malta"]
[WhiteTeamCountry "GRE"]
[BlackTeamCountry "MLT"]
[TimeControl "40/5400+30:1800+30"]

{[%evp 9,65,16,21,-22,7,-14,4,3,41,16,47,32,43,24,95,92,129,110,58,65,104,93,92,58,160,84,118,-42,300,294,396,405,634,628,598,573,574,574,517,491,522,520,497,453,741,738,737,733,716,711,754,751,720,699,1083,965,1079,1062]} 1. Nf3 {[%emt 0:00:05]} Nf6 {[%emt 0:00:17]} 2. c4 {[%emt 0:00:17]} c6 {[%emt 0:00:16]} 3. g3 {[%emt 0:00:12]} d5 {[%emt 0:00:37]} 4. Bg2 {[%emt 0:00:33]} Nbd7 {[%emt 0:02:00]} 5. Qc2 {[%emt 0:07:42]} e5 {[%emt 0:01:07]} 6. d3 {[%emt 0:03:03] A11: English Opening: 1...c6.} Be7 {[%emt 0:06:18]} 7. O-O {[%emt 0:05:02]} O-O {[%emt 0:03:44] [#]} 8. cxd5 $146 {[%emt 0:13:29] The position is equal.} ({Predecessor:} 8. e3 b6 9. Nc3 Bb7 10. b3 Bd6 11. Bb2 Re8 12. e4 d4 13. Ne2 g6 14. h3 {½-½ (59) Cekro,E (2369)-Gerusel,M (2122) Nordrheinwestfalen 2017}) 8... Nxd5 {[%emt 0:11:43]} (8... cxd5 $5 {[%cal Rb7b5]} 9. Bd2 b6 $11) 9. Nbd2 {[%emt 0:02:44]} Kh8 {[%emt 0:41:12]} 10. b3 {[%emt 0:08:26]} Nb4 {[%emt 0:06:28]} 11. Qd1 {[%emt 0:02:09]} f5 {[%emt 0:02:28]} (11... c5 $11 {keeps the balance.}) 12. Bb2 $16 {[%emt 0:07:05]} Qc7 {[%emt 0:04:09]} 13. Nc4 {[%emt 0:08:38]} Bf6 {[%emt 0:01:31]} 14. Qd2 {[%emt 0:00:13]} Na6 {[%emt 0:02:02]} 15. Rac1 {[%emt 0:03:11] White is much more active.} Re8 {[%emt 0:03:03]} 16. Rfd1 {[%emt 0:10:49]} f4 {[%emt 0:02:38]} (16... Nb6 $1 $14) 17. Bc3 {[%emt 0:07:08]} ({Better is} 17. d4 {And now dxe5 would win.} e4 18. Nfe5) 17... Rb8 {[%emt 0:03:45]} 18. Qb2 $2 {[%emt 0:05:18]} (18. d4 $16 {Black must now prevent dxe5.} e4 19. Nfe5) 18... e4 {[%emt 0:01:38][%mdl 8192] This costs Black the game.} (18... b5 $15 {keeps the upper hand.} 19. Ba5 Nb6 20. Ncxe5 Bxe5 21. Nxe5 Rxe5) 19. dxe4 $18 {[%emt 0:00:06]} Rxe4 {[%emt 0:00:51] [#]} 20. Nfe5 $1 {[%emt 0:02:31][%mdl 512]} fxg3 {[%emt 0:01:02]} (20... Nxe5 $142 21. Nxe5 Rxe5) (20... Rxc4 21. Nxc4) 21. Bxe4 {[%emt 0:01:34] White is clearly winning.} gxf2+ {[%emt 0:00:35]} 22. Kh1 {[%emt 0:00:09]} Ndc5 {[%emt 0:01:40]} 23. Bg2 {[%emt 0:00:39]} Be6 {[%emt 0:01:32]} 24. Nf3 {[%emt 0:01:54]} Ne4 {[%emt 0:00:47]} 25. Bxf6 {[%emt 0:00:24]} Nxf6 {[%emt 0:00:11]} 26. Qe5 {[%emt 0:00:09]} Qe7 {[%emt 0:01:18]} (26... Bxc4 $142 27. Rxc4 Re8) 27. Bh3 {[%emt 0:03:40]} Re8 {[%emt 0:00:32]} 28. Qxe6 {[%emt 0:00:08]} Qxe6 {[%emt 0:00:26]} 29. Bxe6 {[%emt 0:00:06]} Rxe6 {[%emt 0:00:02]} 30. Rd8+ {[%emt 0:00:09]} Ng8 {[%emt 0:00:06]} 31. Nce5 {[%emt 0:00:26][%cal Re5f7]} h6 {[%emt 0:00:47]} 32. Nf7+ {[%emt 0:01:01]} Kh7 {[%emt 0:00:05] [#]} 33. N7g5+ $1 {[%emt 0:00:06] Weighted Error Value: White=0.26 (precise) /Black=0.59} 1-0

[Event "44th Chess Olympiad Women 2022"]
[Site "Chennai"]
[Date "2022.07.29"]
[Round "1.27"]
[White "Stagno, Milena"]
[Black "Pavlidou, Ekaterini"]
[Result "0-1"]
[ECO "B22"]
[WhiteElo "1448"]
[BlackElo "2138"]
[Annotator "TA"]
[PlyCount "81"]
[EventDate "2022.07.29"]
[EventType "team-tourn"]
[EventCountry "IND"]
[SourceTitle "playchess.com"]
[Source "ChessBase"]
[SourceQuality "1"]
[WhiteTeam "Malta"]
[BlackTeam "Greece"]
[WhiteTeamCountry "MLT"]
[BlackTeamCountry "GRE"]
[TimeControl "40/5400+30:1800+30"]

{[%evp 15,81,0,6,-20,-5,0,0,0,2,-8,30,45,40,-59,0,-106,-109,-112,-115,-119,-128,-122,-125,-134,-123,-122,-132,-127,-108,-122,-124,-119,-118,-233,-229,-222,-208,-269,-164,-173,-161,-466,-468,-487,-491,-490,-489,-485,-487,-486,-483,-512,-509,-500,-500,-500,-495,-490,-485,-610,-610,-617,-612,-609,-607,-955,-937,-1075]} 1. e4 {[%emt 0:00:05] ChessBase II} c5 {[%emt 0:00:27]} 2. c3 {[%emt 0:00:24]} d5 {[%emt 0:00:12]} 3. exd5 {[%emt 0:00:36]} Qxd5 {[%emt 0:00:13]} 4. d4 {[%emt 0:00:46]} Nc6 {[%emt 0:00:56]} 5. Nf3 {[%emt 0:00:27]} Bg4 {[%emt 0:00:53]} 6. Be2 {[%emt 0:01:25]} cxd4 {[%emt 0:00:21]} 7. cxd4 {[%emt 0:00:53]} e6 {[%emt 0:00:25]} 8. Nc3 {[%emt 0:01:17] 8.Nc3 is better than 8.0-0.} Bb4 {[%emt 0:01:02]} 9. Bd2 {[%emt 0:01:11] B22: Sicilian: 2 c3.} Bxc3 {[%emt 0:01:29]} 10. bxc3 {[%emt 0:03:24]} Nf6 {[%emt 0:04:38]} 11. O-O {[%emt 0:06:07] The position is equal.} O-O {[%emt 0:01:15] [#]} 12. c4 $146 {[%emt 0:02:23]} ({Predecessor:} 12. Bf4 Na5 13. Qc2 Qe4 14. Qd2 Nd5 15. Bg3 Bf5 16. c4 Nb6 17. Ne5 Nc6 18. Nxc6 Qxc6 {1-0 (60) Meisch,T (1707)-Adda,O (2087) Blagny 2012 EXT 2014 [ChessBase II]}) 12... Qe4 {[%emt 0:10:01]} 13. Be3 {[%emt 0:04:59]} Rfd8 {[%emt 0:05:34][%cal Oc6d4]} 14. Qd2 {[%emt 0:07:50] [#]} ({White should try} 14. h3 $14 Bh5 15. Qc1) 14... Qg6 {[%emt 0:07:53]} ({Better is} 14... Nxd4 $1 $15 15. Bxd4 Bxf3 16. Bxf3 Qxd4) 15. h3 {[%emt 0:03:39]} (15. Qb2 $11) 15... Bxh3 $1 $17 {[%emt 0:11:38][%csl Gh3][%cal Rg6g2] Black converts the advantage convincingly.} 16. Nh4 {[%emt 0:01:02]} Qe4 $40 {[%emt 0:00:10][%csl LRd4,LRh4][%mdl 128] Black has strong attack.} 17. Nf3 {[%emt 0:00:21]} Qg4 {[%emt 0:02:38][%csl Gh3][%cal Rg4g2]} 18. Ne1 {[%emt 0:02:38]} Qg6 {[%emt 0:00:09] 0x0.0002da523278dp-1022s more active pieces. The white rooks are badly placed.} 19. Bd3 {[%emt 0:01:32]} Bf5 {[%emt 0:00:19]} 20. Bxf5 {[%emt 0:04:09]} Qxf5 {[%emt 0:00:35]} ({Worse is} 20... exf5 21. Nf3) 21. Nf3 {[%emt 0:02:22]} Ne4 {[%emt 0:10:35]} 22. Qb2 {[%emt 0:03:50]} Rac8 {[%emt 0:03:04]} 23. Rac1 {[%emt 0:18:50]} b6 {[%emt 0:01:21]} 24. Qb5 {[%emt 0:07:15] [#]} (24. Qc2 $17 {is a better defense.}) 24... Qxb5 $1 $19 {[%emt 0:02:30]} 25. cxb5 {[%emt 0:00:09]} Ne7 {[%emt 0:02:52]} 26. Ne5 {[%emt 0:03:10]} Nd5 {[%emt 0:05:06] Threatens to win with ...Nec3.} 27. Nc6 {[%emt 0:00:58]} Rd7 {[%emt 0:00:45] White must now prevent ...Nec3.} 28. Nxa7 $2 {[%emt 0:03:35]} (28. Rc2) 28... Rxc1 {[%emt 0:01:21] Black is clearly winning.} 29. Rxc1 {[%emt 0:00:05] [#] Threatening mate with Rc8+.} Nec3 $1 {[%emt 0:00:37] ...Ne2+ is the strong threat.} 30. Nc6 {[%emt 0:03:23]} Ne2+ {[%emt 0:00:09] Pair of Knights!} 31. Kf1 {[%emt 0:00:51]} Nxc1 {[%emt 0:00:08]} 32. Bxc1 {[%emt 0:00:04][%mdl 4096] Endgame KRN-KBN} Nc3 {[%emt 0:00:30][%csl LRa2,LRb5]} 33. Be3 {[%emt 0:02:33]} Nxb5 {[%emt 0:00:54]} 34. Ne5 {[%emt 0:01:04]} Ra7 {[%emt 0:00:22]} 35. Nc4 {[%emt 0:00:46]} Nc3 {[%emt 0:01:15]} 36. Nxb6 {[%emt 0:05:48]} Rxa2 {[%emt 0:00:11] ( -> ...Ra1+)} 37. Kg1 {[%emt 0:00:14]} Nd1 {[%emt 0:01:31]} 38. Nc4 {[%emt 0:01:48]} Rc2 {[%emt 0:00:19]} 39. Nd6 {[%emt 0:01:47]} f5 {[%emt 0:01:48][%cal Bf7f5,Bf5f4][%mdl 32]} 40. Kf1 {[%emt 0:01:34]} f4 {[%emt 0:00:26]} 41. Ke1 {[%emt 0:33:30] Weighted Error Value: White=0.48/Black=0.08 (flawless)} 0-1

[Event "44th Chess Olympiad Women 2022"]
[Site "Chennai"]
[Date "2022.07.29"]
[Round "1.28"]
[White "Bayarmaa, Bayarjargal"]
[Black "Al Aisaee, Anat"]
[Result "1-0"]
[ECO "D59"]
[WhiteElo "2171"]
[BlackElo "1681"]
[Annotator "TA"]
[PlyCount "73"]
[EventDate "2022.07.29"]
[EventType "team-tourn"]
[EventCountry "IND"]
[SourceTitle "playchess.com"]
[Source "ChessBase"]
[SourceQuality "1"]
[WhiteTeam "Mongolia"]
[BlackTeam "OMA"]
[WhiteTeamCountry "MGL"]
[TimeControl "40/5400+30:1800+30"]

{[%evp 20,73,8,8,8,-5,-10,-7,-4,-27,-8,-19,-10,-18,-12,-21,17,0,1,0,48,0,244,160,201,198,195,185,288,280,271,241,239,135,127,119,123,131,284,140,378,208,1085,1060,2013,2011,5006,3836,2376,1627,2675,2447,29986,29987,29991,29992]} 1. d4 {[%emt 0:00:12]} d5 {[%emt 0:00:14]} 2. c4 {[%emt 0:00:06]} e6 {[%emt 0:00:09]} 3. Nc3 {[%emt 0:00:06]} Nf6 {[%emt 0:00:18]} 4. Bg5 {[%emt 0:01:02]} Be7 {[%emt 0:00:41]} 5. Nf3 {[%emt 0:00:15]} h6 {[%emt 0:01:11]} 6. Bh4 {[%emt 0:02:15]} O-O {[%emt 0:01:45]} 7. e3 {[%emt 0:00:08]} b6 {[%emt 0:00:45]} 8. cxd5 {[%emt 0:00:20]} Nxd5 {[%emt 0:00:22]} 9. Bxe7 {[%emt 0:00:42]} Qxe7 {[%emt 0:00:10]} 10. Nxd5 {[%emt 0:07:43]} exd5 {[%emt 0:00:45]} 11. Rc1 {[%emt 0:00:13]} Be6 {[%emt 0:02:44] D59: Queen's Gambit Declined: Tartakower Defence: Main line (8 cxd5 Nxd5).} 12. Qc2 {[%emt 0:03:36] 12.Qb3 is the modern continuation.} Rc8 {[%emt 0:05:36]} 13. Bd3 {[%emt 0:01:17]} c5 {[%emt 0:05:56] The position is equal.} 14. Qd2 {[%emt 0:01:23]} Nd7 {[%emt 0:06:19]} 15. O-O {[%emt 0:06:13]} c4 {[%emt 0:10:22]} 16. Bb1 {[%emt 0:03:16] [#]} Nf6 $146 {[%emt 0:08:25]} ({Predecessor:} 16... b5 17. Qc2 Nf6 18. Nd2 b4 {0-1 (18) Eggenberger,S (1965)-Siegel,G (2475) Graechen 1999}) 17. Ne5 {[%emt 0:01:46]} Qb7 {[%emt 0:15:27]} 18. f3 {[%emt 0:04:03]} b5 {[%emt 0:04:52]} 19. g4 {[%emt 0:06:58]} Rc7 {[%emt 0:04:54]} (19... Nd7 $11 {was preferrable.}) 20. Kh1 {[%emt 0:01:53]} (20. h4 $14) 20... g5 $2 {[%emt 0:05:24]} (20... Nd7 $11 {and Black is okay.}) 21. h4 {[%emt 0:09:21] Black must now prevent hxg5.} Nd7 {[%emt 0:05:20]} 22. Nxd7 {[%emt 0:07:15]} (22. Qc2 $6 Nf8 $16) 22... Rxd7 {[%emt 0:00:36]} 23. Qc2 {[%emt 0:00:11]} Kf8 {[%emt 0:05:47]} (23... f6 {might work better.} 24. Qg6+ Rg7 25. Qxh6 (25. Qxf6 Qe7 $16) 25... Qe7) 24. Qh7 $18 {[%emt 0:01:03]} Ke7 {[%emt 0:05:21]} 25. Qxh6 {[%emt 0:00:55]} gxh4 {[%emt 0:01:10]} 26. Qxh4+ {[%emt 0:01:27]} (26. f4 $18 {aiming for f5.} Qb8 27. g5) 26... Kd6 $16 {[%emt 0:00:12]} 27. Qf6 {[%emt 0:00:32] [#] Hoping for f4.} Rdd8 {[%emt 0:01:30]} 28. Kg2 {[%emt 0:00:30] White is more active.} Qa6 $2 {[%emt 0:03:25]} (28... Qe7 $16 29. Qe5+ Kc6) 29. Rf2 {[%emt 0:01:48]} ({Much less strong is} 29. Bf5 $6 Kc7 30. a3 (30. Qe7+ Rd7 $16) 30... Rd7 $16) (29. f4 $18) 29... Rh8 $2 {[%emt 0:00:32] Black cannot hold the game after this.} (29... Kc7 $16 {keeps fighting.} 30. Rh1 (30. Qe7+ Rd7 $16) 30... Qd6) 30. e4 {[%emt 0:00:59] The board is on fire.} (30. Rh1 Rxh1 31. Kxh1 Qa5 $16) (30. f4 $142) 30... Qb7 $2 {[%emt 0:00:31]} (30... Kc7 31. Qe7+ (31. exd5 Qd6 $14) 31... Bd7) 31. exd5 $18 {[%emt 0:00:21]} ({Not} 31. Rh1 Rxh1 32. Kxh1 Kc7 $16) 31... Qxd5 {[%emt 0:00:26]} 32. Be4 {[%emt 0:00:16]} Qxe4 {[%emt 0:04:50]} 33. fxe4 {[%emt 0:00:09]} Rag8 {[%emt 0:00:27]} 34. Rf4 {[%emt 0:04:00] [#] d5 is the strong threat.} Kd7 {[%emt 0:00:27]} 35. Kg3 {[%emt 0:00:34] d5 would kill now.} Rh7 {[%emt 0:00:23]} 36. d5 {[%emt 0:00:11][%cal Bd4d5,Bd5e6][%mdl 32]} Rg6 {[%emt 0:00:24]} 37. dxe6+ {[%emt 0:00:08] Weighted Error Value: White=0.32/Black=0.86} 1-0